[Event "MCC Labor Day Schev 2024"]
[Site "New York"]
[Date "2024.09.01"]
[Round "5.6"]
[White "Nasta, Kiren Vivek"]
[Black "Shangin, Lev"]
[Result "0-1"]
[ECO "B85"]
[WhiteElo "2148"]
[BlackElo "1974"]
[Annotator "TA"]
[PlyCount "76"]
[EventDate "2024.08.28"]
[EventType "schev"]
[EventCountry "USA"]
[SourceTitle "playchess.com"]
[Source "ChessBase"]
[SourceQuality "1"]
[TimeControl "5400+30"]

{[%evp 23,76,0,0,0,0,-20,-11,-39,-39,-85,-88,-129,-138,-122,-117,-176,-112,-195,-185,-189,-170,-271,-277,-406,-418,-618,-608,-599,-599,-525,-420,-523,-504,-598,-592,-568,-535,-604,-606,-606,-629,-626,-612,-690,-672,-668,-633,-787,-803,-738,-702,-709,-684,-951,-946]} 1. e4 {[%emt 0:00:01]} c5 {[%emt 0:00:17]} 2. Nf3 {[%emt 0:00:13]} d6 {[%emt 0:01:09]} 3. d4 {[%emt 0:00:22]} cxd4 {[%emt 0:00:29]} 4. Nxd4 {[%emt 0:00:04]} Nf6 {[%emt 0:00:12]} 5. Nc3 {[%emt 0:00:07]} a6 {[%emt 0:00:13]} 6. Be2 {[%emt 0:00:07]} e6 {[%emt 0:00:22]} 7. Be3 {[%emt 0:00:13]} Be7 {[%emt 0:01:53]} 8. O-O {[%emt 0:00:12]} O-O {[%emt 0:00:32]} 9. f4 {[%emt 0:00:09]} Nc6 {[%emt 0:01:05]} 10. a4 {[%emt 0:00:18]} Qc7 {[%emt 0:00:22]} 11. Kh1 {[%emt 0:00:24]} Nxd4 {[%emt 0:00:22]} 12. Qxd4 {[%emt 0:00:36]} Bd7 {[%emt 0:00:48]} 13. e5 {[%emt 0:05:53]} Ne8 {[%emt 0:00:20]} 14. Rad1 {[%emt 0:09:04][%cal Of4f5]} Bc6 {[%emt 0:02:33]} 15. Bd3 {[%emt 0:08:05] The position is equal.} Rd8 {[%emt 0:07:23]} 16. Qb6 {[%emt 0:01:55]} (16. Bg1 $15) 16... dxe5 $17 {[%emt 0:02:44]} 17. fxe5 {[%emt 0:01:05]} Qxe5 {[%emt 0:03:29]} 18. Bf4 {[%emt 0:01:02]} Qh5 {[%emt 0:03:13]} 19. Rde1 {[%emt 0:18:08]} (19. b4 $17 Nf6 20. b5 axb5 21. axb5) 19... Qc5 {[%emt 0:10:55]} (19... Nf6 $19 {And now ...Bc5 would win.} 20. Re5 Qh4) 20. Qb3 {[%emt 0:03:54]} (20. Qxc5 $17 Bxc5 21. Bg5) 20... Nf6 $19 {[%emt 0:09:22]} 21. Re5 {[%emt 0:04:48]} Qd4 $40 {[%emt 0:00:22][%mdl 128] Black wants a kill.} 22. Rg5 {[%emt 0:08:21]} (22. Re2 $142) 22... h6 {[%emt 0:05:47]} 23. Be5 {[%emt 0:02:15]} (23. Ne2 {is a better defense.} Qxa4 24. Qxa4 Bxa4 25. Ra5) 23... Qh4 {[%emt 0:00:12]} 24. Rg3 {[%emt 0:00:56]} (24. Bxf6 $142 Bxf6 (24... hxg5 $2 {is the wrong capture.} 25. Bxe7 Rxd3 26. cxd3 $18) 25. Rc5) 24... Ng4 {[%emt 0:00:16]} 25. Rxg4 {[%emt 0:01:51]} Qxg4 {[%emt 0:00:08][%csl Gc6][%cal Rg4g2] [#]} 26. Bg3 {[%emt 0:00:18]} Qb4 {[%emt 0:01:01]} 27. Qa2 {[%emt 0:00:24]} Bd6 {[%emt 0:00:24] Black is clearly winning.} 28. Ne2 {[%emt 0:00:32]} Bxg3 {[%emt 0:00:29]} ({Weaker is} 28... Bxa4 29. Be1 $15) 29. Nxg3 {[%emt 0:00:03]} Qxa4 {[%emt 0:00:14]} 30. Qb1 {[%emt 0:00:08]} Bb5 {[%emt 0:00:51]} 31. b3 {[%emt 0:00:52]} Qd4 {[%emt 0:00:13][%cal Rb5d3]} 32. Bxb5 {[%emt 0:00:23]} axb5 {[%emt 0:00:02]} 33. Qe1 {[%emt 0:00:23]} Rc8 {[%emt 0:00:19]} 34. Qe2 {[%emt 0:00:35]} Qc5 {[%emt 0:01:01]} 35. Nh5 {[%emt 0:00:49]} Qxc2 {[%emt 0:00:26]} 36. Qe5 {[%emt 0:00:06]} Qg6 {[%emt 0:00:11]} ({Inferior is} 36... Qxb3 37. Qxg7#) 37. Qxb5 {[%emt 0:01:12]} Qg5 {[%emt 0:00:12]} 38. Qe2 {[%emt 0:00:06]} Rc1 {[%emt 0:01:07] White did not feel at home in the position after the opening.   Weighted Error Value: White=0.52/Black=0.15 (very precise) .  Mistake:       	White=6     	Black=1      Inaccurate:     	White=2     	---        OK:         	White=3     	Black=10     Best:        	White=1     	Black=2} 0-1

[Event "MCC Labor Day Schev 2024"]
[Site "New York"]
[Date "2024.09.01"]
[Round "5.7"]
[White "Zaderman, Vitaly"]
[Black "Gaw, Chloe"]
[Result "1/2-1/2"]
[ECO "A36"]
[WhiteElo "2093"]
[BlackElo "1981"]
[Annotator "TA"]
[PlyCount "66"]
[EventDate "2024.08.28"]
[EventType "schev"]
[EventCountry "USA"]
[SourceTitle "playchess.com"]
[Source "ChessBase"]
[SourceQuality "1"]
[TimeControl "5400+30"]

{[%evp 23,66,0,0,0,0,0,0,0,0,0,1,0,2,12,3,0,0,0,0,0,0,0,0,0,0,0,0,0,0,0,0,0,0,0,0,0,0,0,0,0,0,0,0,0,0]} 1. c4 {[%emt 0:02:55]} c5 {[%emt 0:00:06]} 2. Nc3 {[%emt 0:00:09]} Nc6 {[%emt 0:00:05]} 3. g3 {[%emt 0:00:09]} g6 {[%emt 0:00:10]} 4. Bg2 {[%emt 0:00:05]} Bg7 {[%emt 0:00:03]} 5. e3 {[%emt 0:00:12]} e6 {[%emt 0:00:25]} 6. Nge2 {[%emt 0:00:09]} Nge7 {[%emt 0:00:03]} 7. O-O {[%emt 0:00:23]} O-O {[%emt 0:00:04]} 8. d4 {[%emt 0:00:24]} cxd4 {[%emt 0:00:05]} 9. exd4 {[%emt 0:00:11]} d5 {[%emt 0:00:15]} 10. cxd5 {[%emt 0:17:51]} Nxd5 {[%emt 0:00:50]} 11. Nxd5 {[%emt 0:08:37]} exd5 {[%emt 0:00:05]} 12. Be3 {[%emt 0:01:46]} Bg4 {[%emt 0:05:38] The position is equal.} 13. Qd2 {[%emt 0:04:59]} Bxe2 {[%emt 0:04:35]} 14. Qxe2 {[%emt 0:00:18]} Nxd4 {[%emt 0:01:21]} 15. Bxd4 {[%emt 0:00:30]} Bxd4 {[%emt 0:00:03]} 16. Rad1 {[%emt 0:00:37]} Qb6 {[%emt 0:04:24]} 17. Bxd5 {[%emt 0:00:49]} Qxb2 {[%emt 0:06:09]} 18. Qxb2 {[%emt 0:00:14]} Bxb2 {[%emt 0:00:04]} 19. Bxb7 {[%emt 0:00:11]} Rad8 {[%emt 0:00:32]} 20. Kg2 {[%emt 0:02:59]} Kg7 {[%emt 0:01:15]} 21. Bf3 {[%emt 0:01:52]} Bd4 {[%emt 0:01:55]} 22. Rd3 {[%emt 0:00:34]} Bb6 {[%emt 0:00:33]} 23. Rxd8 {[%emt 0:01:02]} Rxd8 $11 {[%emt 0:00:02][%mdl 4096] Endgame. KRB-KRB} 24. Rd1 {[%emt 0:00:09]} Rc8 {[%emt 0:00:18]} 25. Rd2 {[%emt 0:00:24] Prevents Rc2} Rc3 {[%emt 0:03:14]} 26. h4 {[%emt 0:01:44]} h5 {[%emt 0:01:33]} 27. Bd5 {[%emt 0:00:20]} Ba5 {[%emt 0:02:38][%cal Oc3g3]} 28. Re2 {[%emt 0:00:24]} Rc7 {[%emt 0:00:35]} 29. Bb3 {[%emt 0:00:46]} Bb6 {[%emt 0:00:21]} 30. Bd5 {[%emt 0:02:39]} Rd7 {[%emt 0:00:07]} 31. Bb3 {[%emt 0:00:36]} Rc7 {[%emt 0:00:03]} 32. Kf3 {[%emt 0:01:12]} Rc3+ {[%emt 0:00:22]} 33. Kg2 {[%emt 0:00:08]} Rc7 {[%emt 0:00:07] An uneventful encounter.   Weighted Error Value: White=0.00 (flawless) /Black=0.00 (flawless) .  OK:         	White=10    	Black=5} 1/2-1/2

[Event "MCC Labor Day Schev 2024"]
[Site "New York"]
[Date "2024.09.01"]
[Round "5.8"]
[White "Khodzhamkuliev, Bahadur"]
[Black "Mottola, Max"]
[Result "1/2-1/2"]
[ECO "D05"]
[WhiteElo "2187"]
[BlackElo "2103"]
[Annotator "TA"]
[PlyCount "77"]
[EventDate "2024.08.28"]
[EventType "schev"]
[EventCountry "USA"]
[SourceTitle "playchess.com"]
[Source "ChessBase"]
[SourceQuality "1"]
[TimeControl "5400+30"]

{[%evp 9,77,4,56,0,35,-4,30,30,46,0,16,30,23,17,31,16,16,-15,-16,-26,0,-24,-22,-121,-105,-105,-122,-116,99,0,0,0,0,0,0,0,0,0,0,-34,0,0,0,-12,0,-95,-91,-113,-111,-112,-94,-81,-85,-95,-29,-77,0,0,0,0,0,-20,-20,-17,-17,-55,0,-279,-279,-261]} 1. Nf3 {[%emt 0:05:33]} d5 {[%emt 0:00:08]} 2. d4 {[%emt 0:00:12]} Nf6 {[%emt 0:00:08]} 3. e3 {[%emt 0:00:13]} c5 {[%emt 0:00:47]} 4. Nbd2 {[%emt 0:00:20]} Nc6 {[%emt 0:00:34]} 5. c3 {[%emt 0:03:38]} Bg4 {[%emt 0:00:35]} (5... e6 $11) 6. Qa4 {[%emt 0:00:44]} (6. dxc5 $14 e5 7. b4) 6... Nd7 {[%emt 0:09:13]} 7. Bb5 {[%emt 0:04:11]} Qc7 {[%emt 0:07:49]} 8. c4 {[%emt 0:05:54] White has an edge.} dxc4 {[%emt 0:14:52]} 9. O-O {[%emt 0:04:38]} (9. Bxc4 Nb6 10. Qb3 Nxc4 11. Qxc4 cxd4 $11) (9. dxc5 $14 e6 10. Qxc4 (10. Bxc4 Nxc5 11. Qc2 Bf5 $15) (10. Nxc4 Bxc5 11. Bxc6 bxc6 $11) 10... Bxf3 11. Nxf3) 9... e6 {[%emt 0:04:18]} 10. Qxc4 {[%emt 0:01:03]} Bxf3 {[%emt 0:07:15]} 11. Nxf3 {[%emt 0:00:18]} a6 {[%emt 0:01:14]} 12. Bxc6 {[%emt 0:01:27]} Qxc6 {[%emt 0:00:23]} 13. e4 {[%emt 0:03:16]} Qxe4 {[%emt 0:06:29]} 14. Re1 {[%emt 0:00:28]} Qf5 {[%emt 0:09:59]} 15. d5 {[%emt 0:08:20][%cal Rd5e6]} b5 {[%emt 0:07:18]} 16. Qe2 {[%emt 0:06:09]} (16. Qc3 $11 Qxd5 17. Bg5) 16... Qxd5 $17 {[%emt 0:01:32]} 17. Bg5 {[%emt 0:02:12]} Be7 {[%emt 0:09:12]} 18. Rad1 {[%emt 0:02:47]} Qf5 {[%emt 0:02:49] [#]} (18... Qxa2 19. Qe4 Ra7 20. Bxe7 Kxe7 21. Ne5 Nxe5 (21... Qxb2 $2 22. Nc6+ Kf8 23. Nxa7 $18) 22. Qxe5 $18) (18... Qc6 $17 {...Bxg5 is the strong threat.} 19. Bxe7 Kxe7) 19. Bxe7 {[%emt 0:07:36] White is more active.} (19. Rxd7 $1 $16 Kxd7 20. Ne5+ Ke8 21. g4 Qxg5 22. Qf3) 19... Kxe7 $11 {[%emt 0:00:07]} 20. Qd2 $1 $36 {[%emt 0:03:30][%mdl 2048] White is more active.} Rhd8 {[%emt 0:01:33][%cal Od7e5]} 21. Qd6+ {[%emt 0:00:25]} Ke8 {[%emt 0:00:02]} 22. Qc6 $1 {[%emt 0:09:07][%cal Od1d7] Threatens to win with Rxd7!} Rac8 {[%emt 0:01:13]} 23. Qxa6 {[%emt 0:00:35]} b4 {[%emt 0:04:17]} 24. Rd6 {[%emt 0:04:01]} Ra8 {[%emt 0:02:54]} (24... c4 $5 25. Nd4 Qc5 26. Rdxe6+ Kf8 $17 (26... fxe6 27. Nxe6 Qb6 28. Nc5+ Kf7 29. Qxc4+ Kf8 30. Nxd7+ Rxd7 31. Qxc8+ Rd8 32. Qc4 $16)) 25. Qb5 {[%emt 0:02:34][%cal Od6d7]} Rab8 {[%emt 0:00:56]} 26. Qa6 {[%emt 0:01:24]} Ra8 {[%emt 0:00:17]} 27. Qe2 {[%emt 0:02:17]} (27. Qb5 $11) 27... Nf6 {[%emt 0:02:01]} 28. Qb5+ {[%emt 0:01:44]} Kf8 {[%emt 0:01:34]} 29. Rxd8+ {[%emt 0:01:50]} Rxd8 {[%emt 0:00:03]} 30. a4 {[%emt 0:00:32]} bxa3 {[%emt 0:02:10]} 31. bxa3 {[%emt 0:00:07]} Ne4 {[%emt 0:00:56]} (31... Qd5 $17 32. h3 Qd6 (32... c4 33. Qb4+ Qd6 34. Qxc4 $17)) 32. a4 {[%emt 0:01:57] [#]} (32. Qa5 $11 Ke7 33. Qa7+ Rd7 34. Qb8) 32... g5 {[%emt 0:00:53]} ({Better is} 32... Qd5 $1 $17) 33. h3 $1 {[%emt 0:00:24]} h5 {[%emt 0:00:52]} 34. Qb6 {[%emt 0:02:16]} Ra8 {[%emt 0:01:33]} 35. Qb2 {[%emt 0:01:29]} (35. Qc6 $5 Qd5 $8 36. Qc7 $11) 35... Kg8 {[%emt 0:01:25] Prevents Qh8+.} 36. Qc2 {[%emt 0:01:06]} Nd6 {[%emt 0:00:21]} 37. Qd2 {[%emt 0:00:17]} Ne4 {[%emt 0:00:30]} (37... Qf4 $15 38. Qd1 Ne4 (38... Rxa4 39. g3 $14)) 38. Qe3 $2 {[%emt 0:00:33][%mdl 8192]} (38. Qc2 $11 {and White has nothing to worry.} Nd6 39. Qd1) 38... Rxa4 $19 {[%emt 0:00:41]} 39. Rc1 {[%emt 0:02:52][%mdl 32768] Weighted Error Value: White=0.31/Black=0.24 (precise) .  Loses game:     	White=1     	---        Mistake:       	White=5     	Black=4      Inaccurate:     	White=4     	Black=3      OK:         	White=10    	Black=10     Best:        	---       	Black=4      Strong:       	White=3     	---       . An unexpected result.} 1/2-1/2

[Event "MCC Labor Day Schev 2024"]
[Site "New York"]
[Date "2024.09.01"]
[Round "5.9"]
[White "Aravindakshan, Sahana"]
[Black "Martin Del Campo Cardenas, Roberto Abel"]
[Result "1/2-1/2"]
[ECO "E71"]
[WhiteElo "2003"]
[BlackElo "2216"]
[Annotator "TA"]
[PlyCount "120"]
[EventDate "2024.08.28"]
[EventType "schev"]
[EventCountry "USA"]
[SourceTitle "playchess.com"]
[Source "ChessBase"]
[SourceQuality "1"]
[TimeControl "5400+30"]

{[%evp 20,120,73,82,77,4,18,16,4,5,33,0,0,-83,-85,-58,-73,-114,-109,-102,-58,-52,61,53,75,57,80,0,0,0,0,0,0,0,0,0,0,0,0,0,0,0,0,0,0,0,0,0,0,-3,-5,-8,-4,-71,-71,-77,-77,-298,-23,-23,-23,-23,-23,-31,-31,-93,-93,-93,-93,-93,-93,-93,-93,-93,-93,-93,-93,-93,-93,-93,-93,-93,-91,-107,-107,-148,-148,-148,-83,-148,-148,-148,-148,-148,0,-148,0,-148,-148,-148,-148,-148,0]} 1. d4 {[%emt 0:00:01]} Nf6 {[%emt 0:03:46]} 2. c4 {[%emt 0:00:05]} d6 {[%emt 0:00:04]} 3. Nc3 {[%emt 0:00:04]} g6 {[%emt 0:00:09]} 4. e4 {[%emt 0:00:06]} Bg7 {[%emt 0:00:04]} 5. h3 {[%emt 0:00:11]} O-O {[%emt 0:00:10]} 6. Bg5 {[%emt 0:00:06]} c5 {[%emt 0:00:29]} 7. d5 {[%emt 0:00:13]} b5 {[%emt 0:01:25]} 8. cxb5 {[%emt 0:02:07]} a6 {[%emt 0:00:08]} 9. a4 {[%emt 0:09:03]} Qa5 {[%emt 0:02:50]} 10. Bd2 {[%emt 0:08:01]} axb5 {[%emt 0:03:19]} 11. Bxb5 {[%emt 0:01:32]} Ba6 {[%emt 0:00:18]} 12. Bxa6 {[%emt 0:01:51]} (12. Ra3 $16) 12... Nxa6 $11 {[%emt 0:02:25]} 13. Nf3 {[%emt 0:01:20]} Rfb8 {[%emt 0:00:32] The position is equal.} 14. Rb1 {[%emt 0:06:33]} c4 {[%emt 0:06:34]} 15. Qe2 {[%emt 0:17:01][%cal Of3d4]} Nc5 {[%emt 0:20:37]} 16. Qxc4 {[%emt 0:06:20]} (16. O-O $1 $11 {keeps the balance.}) 16... Rb4 $1 $17 {[%emt 0:00:54]} 17. Qe2 {[%emt 0:01:09]} Nfxe4 {[%emt 0:00:23]} 18. O-O {[%emt 0:10:22]} Nxd2 {[%emt 0:10:32]} 19. Nxd2 {[%emt 0:00:43][%cal Bf3d2,Bd2c4,Bc4e3][%mdl 32]} Ra7 {[%emt 0:00:41][%cal Oa7b7]} 20. Nb5 {[%emt 0:02:01]} Rd7 {[%emt 0:04:26]} (20... Rb7 $1 $15 21. b3 Nxb3 22. Rxb3 Rxb3 23. Nxb3 Qxa4 24. Nxd6 exd6 (24... Rxb3 25. Nc8 $11)) 21. b3 $14 {[%emt 0:00:58]} Qa6 {[%emt 0:04:22]} 22. Qe3 {[%emt 0:06:43] Repels Bh6} Qa8 {[%emt 0:07:11]} 23. Rfd1 {[%emt 0:11:13]} (23. Qf3 $1 $16) 23... Qxd5 $11 {[%emt 0:01:41]} 24. Nc4 {[%emt 0:00:29]} Qe6 {[%emt 0:09:18]} 25. Qf3 {[%emt 0:01:44]} d5 {[%emt 0:03:17]} 26. Ne3 {[%emt 0:06:45] Excellent horsemanship.} Rxb3 {[%emt 0:00:50]} 27. Rxb3 {[%emt 0:00:48]} Nxb3 {[%emt 0:00:03]} 28. Rxd5 {[%emt 0:03:23]} Nd4 {[%emt 0:08:26]} 29. Nxd4 {[%emt 0:00:30]} Bxd4 {[%emt 0:00:02]} 30. Rxd7 {[%emt 0:01:03]} Qxd7 {[%emt 0:00:04][%mdl 4096] Endgame. KQB-KQN} 31. Qd1 {[%emt 0:02:34]} Qa7 {[%emt 0:00:11]} 32. Qb3 {[%emt 0:00:23]} Kg7 {[%emt 0:04:26]} 33. Kh1 {[%emt 0:00:46]} Qa5 {[%emt 0:01:16]} 34. Qd1 {[%emt 0:00:31] Against Qe1+} e5 {[%emt 0:00:33]} 35. Kg1 {[%emt 0:00:42]} Qc3 {[%emt 0:01:43]} 36. Qc2 {[%emt 0:00:37]} (36. Qf3 $11) 36... Qe1+ $17 {[%emt 0:01:00]} 37. Nf1 {[%emt 0:00:05] [#]} e4 $1 {[%emt 0:01:27]} 38. Qd2 $2 {[%emt 0:00:32] [#]} (38. g3 $17 {is a better defense.}) 38... Qa1 $2 {[%emt 0:00:11]} (38... Qxd2 $1 $19 39. Nxd2 e3) 39. a5 $11 {[%emt 0:00:38][%cal Oa5a6] [#]} e3 $1 {[%emt 0:01:58]} 40. fxe3 {[%emt 0:00:19]} Bc3 {[%emt 0:00:02]} 41. Qd5 {[%emt 0:00:54]} Bxa5 {[%emt 0:00:04]} 42. Qd4+ {[%emt 0:00:32]} (42. Qc4 $15) 42... Qxd4 $17 {[%emt 0:00:05]} 43. exd4 {[%emt 0:00:01] KB-KN} Bb6 {[%emt 0:00:04]} 44. g4 {[%emt 0:00:06]} Kf6 {[%emt 0:00:35][%cal Of6g5]} 45. Nd2 {[%emt 0:00:55]} Bxd4+ {[%emt 0:00:30]} 46. Kg2 {[%emt 0:00:10]} h6 {[%emt 0:00:19]} 47. Ne4+ {[%emt 0:01:03]} Ke5 {[%emt 0:04:36]} 48. Kf3 {[%emt 0:00:19]} Bb2 {[%emt 0:00:00]} 49. Nf2 {[%emt 0:00:49] Hoping for Nd3+.} Ba3 {[%emt 0:00:00]} 50. Nd3+ {[%emt 0:00:28]} Kf6 {[%emt 0:00:00]} 51. Nf2 {[%emt 0:00:33]} Kg5 {[%emt 0:00:00]} 52. Ne4+ {[%emt 0:00:19]} Kh4 {[%emt 0:00:00]} 53. Kg2 {[%emt 0:00:09]} h5 {[%emt 0:00:00]} (53... Bb4 $142) 54. Kf3 {[%emt 0:00:58]} ({Better is} 54. Nd2 hxg4 55. hxg4) 54... Be7 {[%emt 0:00:11]} ({Don't play} 54... Kxh3 $6 55. gxh5 gxh5 56. Ng5+ Kh2 57. Nxf7 $11) 55. Nf2 {[%emt 0:00:29]} Bd8 {[%emt 0:00:35]} 56. Kf4 {[%emt 0:00:38]} Be7 {[%emt 0:01:52]} 57. Kf3 $1 {[%emt 0:00:10]} Bd8 {[%emt 0:00:58]} 58. Kf4 $1 {[%emt 0:00:33]} Ba5 {[%emt 0:00:16] ...Be1 is the strong threat. Black is clearly better.} 59. Kf3 {[%emt 0:00:20]} Bb4 {[%emt 0:00:19]} 60. Ne4 {[%emt 0:00:30]} Be7 {[%emt 0:00:59] Weighted Error Value: White=0.23 (precise) /Black=0.24 (precise) .  Loses game:     	White=1     	---        Missed win:     	---       	Black=1      Mistake:       	White=6     	Black=3      Inaccurate:     	White=3     	Black=2      OK:         	White=17    	Black=19     Best:        	White=1     	Black=4      Strong:       	White=2     	Black=2} ({Much worse is} 60... Kxh3 $6 61. gxh5 gxh5 62. Ng5+ Kh2 63. Nxf7 $11) ({Black should try} 60... Ba3 $17) 1/2-1/2

[Event "MCC Labor Day Schev 2024"]
[Site "New York"]
[Date "2024.09.01"]
[Round "6.1"]
[White "Colas, Joshua"]
[Black "Zhao, Alex"]
[Result "1/2-1/2"]
[ECO "E62"]
[WhiteElo "2224"]
[BlackElo "2043"]
[Annotator "TA"]
[PlyCount "84"]
[EventDate "2024.08.28"]
[EventType "schev"]
[EventCountry "USA"]
[SourceTitle "playchess.com"]
[Source "ChessBase"]
[SourceQuality "1"]
[TimeControl "5400+30"]

{[%evp 20,84,16,8,10,11,12,16,16,12,17,0,8,0,6,0,0,0,0,0,0,0,0,0,0,0,0,0,0,-6,-8,-9,-16,-14,-8,-9,0,-42,-44,-50,-16,-17,-22,-18,-22,-18,0,0,0,-16,0,0,0,0,0,-12,0,0,0,0,0,0,0,-10,0,-12,0]} 1. Nf3 {[%emt 0:07:54]} g6 {[%emt 0:02:36]} 2. g3 {[%emt 0:00:55]} Bg7 {[%emt 0:00:50]} 3. d4 {[%emt 0:00:24]} Nf6 {[%emt 0:00:44]} 4. Bg2 {[%emt 0:00:58]} O-O {[%emt 0:00:31]} 5. O-O {[%emt 0:00:23]} d6 {[%emt 0:08:05]} 6. c4 {[%emt 0:00:13]} c6 {[%emt 0:00:09]} 7. Nc3 {[%emt 0:00:07]} Bf5 {[%emt 0:00:03]} 8. Nh4 {[%emt 0:02:13]} Be6 {[%emt 0:00:07]} 9. d5 {[%emt 0:01:58]} cxd5 {[%emt 0:00:04]} 10. cxd5 {[%emt 0:01:18]} Bd7 {[%emt 0:00:03]} 11. e4 {[%emt 0:01:11]} Na6 {[%emt 0:00:19]} 12. Be3 {[%emt 0:01:17]} Ng4 {[%emt 0:00:13]} 13. Bd4 {[%emt 0:00:39]} Bxd4 {[%emt 0:00:11]} 14. Qxd4 {[%emt 0:00:10]} Qb6 {[%emt 0:00:12]} 15. Qd2 {[%emt 0:02:44]} Nc5 {[%emt 0:16:02]} 16. Rab1 {[%emt 0:02:24]} a5 {[%emt 0:03:59]} 17. h3 {[%emt 0:01:12]} Ne5 {[%emt 0:04:34]} 18. Kh2 {[%emt 0:00:34]} Rac8 {[%emt 0:15:32]} 19. f4 {[%emt 0:04:27]} Nc4 {[%emt 0:03:26]} 20. Qe2 {[%emt 0:00:54]} Na4 {[%emt 0:01:21]} 21. Nxa4 {[%emt 0:05:11]} Bxa4 {[%emt 0:00:09]} 22. Rfc1 {[%emt 0:00:39]} Bb5 {[%cal Oc4a3]} 23. Qe1 {[%emt 0:00:30]} Qe3 24. Bf1 {[%emt 0:00:30] [#] Strongly threatening Qxe3.} Qxe1 25. Rxe1 {[%emt 0:00:30]} Rc5 26. Nf3 {[%emt 0:00:30] Prevents Nd2} Rfc8 27. Nd4 {[%emt 0:00:30]} Ba6 28. Nb3 {[%emt 0:00:30] Repels Nd2} R5c7 29. a4 {[%emt 0:00:30]} b5 30. axb5 {[%emt 0:00:30] The position is equal.} Bxb5 31. Nxa5 {[%emt 0:00:30]} Nxa5 32. Bxb5 {[%emt 0:00:30]} Rc2+ 33. Kg1 {[%emt 0:00:30]} Rb8 34. Re2 {[%emt 0:00:30]} Rc5 {[%mdl 1024] Black has compensation.} 35. Ba4 {[%emt 0:00:30]} Rb4 36. Bd1 {[%emt 0:00:30]} Rcb5 37. Bc2 {[%emt 0:00:30]} Nb3 38. Bxb3 {[%emt 0:00:30]} Rxb3 39. Kg2 {[%emt 0:00:30]} R5b4 40. Kh2 {[%emt 0:00:30]} Rd3 41. Rg1 {[%emt 0:00:30]} h5 42. h4 {[%emt 0:00:30]} f6 {Weighted Error Value: White=0.05 (flawless) /Black=0.04 (flawless) .  Inaccurate:     	White=1     	Black=1      OK:         	White=14    	Black=12} 1/2-1/2

[Event "MCC Labor Day Schev 2024"]
[Site "New York"]
[Date "2024.09.01"]
[Round "6.2"]
[White "Almeida Saenz, Alfonso"]
[Black "Patel, Maahir M"]
[Result "1/2-1/2"]
[ECO "D00"]
[WhiteElo "2202"]
[BlackElo "2005"]
[Annotator "TA"]
[PlyCount "66"]
[EventDate "2024.08.28"]
[EventType "schev"]
[EventCountry "USA"]
[SourceTitle "playchess.com"]
[Source "ChessBase"]
[SourceQuality "1"]
[TimeControl "5400+30"]

{[%evp 15,66,0,0,-4,-2,-10,-2,-10,0,-18,-12,-6,-6,-27,0,-11,-5,-16,-6,-9,-18,-42,10,0,0,0,0,-68,0,0,-7,-8,-7,-19,-14,-14,0,-54,-45,-55,-22,-25,-22,-55,-26,-35,-23,-26,-24,-24,7,0,37]} 1. d4 {[%emt 0:12:05]} Nf6 {[%emt 0:00:05]} 2. Bg5 {[%emt 0:00:22]} d5 {[%emt 0:00:07]} 3. Bxf6 {[%emt 0:00:30]} exf6 {[%emt 0:00:32]} 4. e3 {[%emt 0:00:04]} Bd6 {[%emt 0:00:12]} 5. c4 {[%emt 0:00:05]} dxc4 {[%emt 0:00:03]} 6. Bxc4 {[%emt 0:00:06]} Nd7 {[%emt 0:00:05]} 7. Nc3 {[%emt 0:00:28]} f5 {[%emt 0:00:11]} 8. Nf3 {[%emt 0:01:52]} O-O {[%emt 0:00:17]} 9. O-O {[%emt 0:00:02]} Nf6 {[%emt 0:01:01]} 10. Qc2 {[%emt 0:01:25]} c6 {[%emt 0:01:04]} 11. Rad1 {[%emt 0:00:34]} Qe7 {[%emt 0:00:21]} 12. Bd3 {[%emt 0:00:38]} g6 {[%emt 0:00:07]} 13. Rfe1 {[%emt 0:00:06]} Be6 {[%emt 0:01:58]} 14. a3 {[%emt 0:01:03]} Nd5 {[%emt 0:01:08]} 15. Bf1 {[%emt 0:04:45]} Nxc3 {[%emt 0:00:35]} 16. Qxc3 {[%emt 0:00:05]} Bd5 {[%emt 0:02:25]} 17. Nd2 {[%emt 0:00:12]} b5 {[%emt 0:01:14]} 18. g3 {[%emt 0:00:08]} Qb7 {[%emt 0:02:33]} (18... b4 $15 19. axb4 Bxb4) 19. b4 {[%emt 0:00:18]} a5 {[%emt 0:01:30]} 20. bxa5 {[%emt 0:00:51]} Qa7 {[%emt 0:00:57]} 21. Nb3 {[%emt 0:00:23]} ({Better is} 21. e4 $11 fxe4 22. Nxe4) 21... Bxa3 {[%emt 0:00:45]} (21... Qe7 $15 22. Nd2 Bc7 (22... Bxa3 23. Rb1 $15)) 22. Bg2 $11 {[%emt 1:15:28]} Rfc8 {[%emt 0:03:25]} 23. Ra1 {[%emt 0:00:00]} b4 {[%emt 0:01:00]} 24. Qc2 {[%emt 0:00:00]} Bxb3 {[%emt 0:00:10]} 25. Qxb3 {[%emt 0:00:00]} Qxa5 {[%emt 0:00:22]} 26. Rab1 {[%emt 0:00:00]} ({White should play} 26. Rec1 $11) 26... Ra7 {[%emt 0:01:53]} 27. Bf1 {[%emt 0:00:00]} Rac7 {[%emt 0:01:41]} 28. Bc4 {[%emt 0:00:00]} Kg7 {[%emt 0:00:59]} 29. Re2 {[%emt 0:00:00][%cal Be1e2,Be2c2,Bc2c5][%mdl 32]} h5 {[%emt 0:01:43][%cal Oh5h4]} 30. h4 {[%emt 0:00:00]} Qa7 {[%emt 0:01:48]} 31. Rc2 {[%emt 0:00:00]} Rd8 {[%emt 0:07:31]} 32. Bf1 {[%emt 0:00:00]} Rdc8 {[%emt 0:03:28]} 33. Rc5 {[%emt 0:00:00]} Qb8 {[%emt 0:03:25] Weighted Error Value: White=0.13 (very precise) /Black=0.13 (very precise) .  Mistake:       	White=2     	Black=2      Inaccurate:     	White=1     	Black=5      OK:         	White=10    	Black=9      Best:        	White=1     	---} 1/2-1/2